fUSD/lending_fUSD_20240728
["ID","MTS","AMOUNT","RATE_DAILY","PERIOD"]
[333464526,1722157832516,-501.44,0.00010999,2]
[333464527,1722157832525,-501.44,0.00010999,2]
[333464528,1722157832535,-501.44,0.00010999,2]
[333464529,1722157832544,-501.44,0.00010999,2]
[333464530,1722157832553,-501.44,0.00010999,2]
[333464531,1722157832562,-501.44,0.00010999,2]
[333464532,1722157832571,-501.44,0.00010999,2]
[333464533,1722157832580,-501.44,0.00010999,2]
[333464534,1722157832589,-169.44857732,0.00010999,2]
[333464535,1722157832598,-501.44,0.00010999,2]
[333464536,1722157832607,-501.44,0.00010999,2]
[333464537,1722157832616,-501.44,0.00010999,2]
[333464538,1722157832625,-501.44,0.00010999,2]
[333464539,1722157832634,-501.44,0.00010999,2]
[333464540,1722157832644,-501.44,0.00010999,2]
[333464541,1722157832654,-501.44,0.00010999,2]
[333464542,1722157832663,-501.44,0.00010999,2]
[333464543,1722157832672,-501.44,0.00010999,2]
[333464544,1722157832681,-501.44,0.00010999,2]
[333464545,1722157832690,-501.44,0.00010999,2]
[333464546,1722157832700,-501.44,0.00010999,2]
[333464547,1722157832709,-501.44,0.00010999,2]
[333464548,1722157832718,-501.44,0.00010999,2]
[333464549,1722157832727,-501.5158828,0.00010999,2]
[333464550,1722157832736,-561.42773282,0.00010999,2]
[333464551,1722157832745,-500.0,0.00010999,2]
[333464552,1722157832755,-500.0,0.00010999,2]
[333464553,1722157832764,-491.04561742,0.00010999,2]
[333464554,1722157832772,-500.0,0.00010999,2]
[333464555,1722157832782,-513.37226298,0.00010999,2]
[333464556,1722157832791,-500.0,0.00010999,2]
[333464557,1722157832800,-510.253576,0.00010999,2]
[333464558,1722157832810,-503.02524472,0.00010999,2]
[333464559,1722157832819,-500.0,0.00010999,2]
[333464560,1722157832827,-500.0,0.00010999,2]
[333464561,1722157832837,-500.0,0.00010999,2]
[333464562,1722157832846,-500.0,0.00010999,2]
[333464563,1722157832855,-500.0,0.00010999,2]
[333464564,1722157832865,-500.0,0.00010999,2]
[333464565,1722157832875,-500.0,0.00010999,2]
[333464566,1722157832884,-500.0,0.00010999,2]
[333464567,1722157832894,-583.26609825,0.00010999,2]
[333464568,1722157832906,-505.90702789,0.00010999,2]
[333464569,1722157832915,-500.0,0.00010999,2]
[333464570,1722157832925,-500.0,0.00010999,2]
[333464571,1722157832934,-500.0,0.00010999,2]
[333464572,1722157832943,-583.04531013,0.00010999,2]
[333464573,1722157832952,-608.18602119,0.00010999,2]
[333464574,1722157832961,-508.87956595,0.00010999,2]
[333464575,1722157832971,-500.0,0.00010999,2]
[333464576,1722157832980,-500.0,0.00010999,2]
[333464577,1722157832989,-500.0,0.00010999,2]
[333464578,1722157832998,-500.0,0.00010999,2]
[333464579,1722157833007,-500.0,0.00010999,2]
[333464580,1722157833017,-500.0,0.00010999,2]
[333464581,1722157833026,-500.0,0.00010999,2]
[333464582,1722157833035,-500.0,0.00010999,2]
[333464583,1722157833044,-4172.15,0.00010999,2]
[333464584,1722157833053,-500.0,0.00010999,2]
[333464585,1722157833063,-500.0,0.00010999,2]
[333464586,1722157833073,-4172.15,0.00010999,2]
[333464587,1722157833082,-488.15899209,0.00010999,2]
[333464588,1722157833091,-4172.15,0.00010999,2]
[333464589,1722157833100,-4172.15,0.00010999,2]
[333464590,1722157833110,-4172.15,0.00010999,2]
[333464591,1722157833119,-4172.15,0.00010999,2]
[333464592,1722157833128,-4172.15,0.00010999,2]
[333464593,1722157833137,-4172.15,0.00010999,2]
[333464594,1722157833146,-4172.15,0.00010999,2]
[333464595,1722157833155,-4172.15,0.00010999,2]
[333464596,1722157833165,-4172.15,0.00010999,2]
[333464597,1722157833174,-4172.15,0.00010999,2]
[333464598,1722157833183,-4172.15,0.00010999,2]
[333464599,1722157833192,-4172.15,0.00010999,2]
[333464600,1722157833201,-4172.15,0.00010999,2]
[333464601,1722157833214,-4172.15,0.00010999,2]
[333464602,1722157833225,-4172.15,0.00010999,2]
[333464603,1722157833234,-4172.15,0.00010999,2]
[333464604,1722157833244,-4172.15,0.00010999,2]
[333464605,1722157833254,-4172.15,0.00010999,2]
[333464606,1722157833263,-4172.15,0.00010999,2]
[333464607,1722157833273,-4172.15,0.00010999,2]
[333464608,1722157833282,-4172.15,0.00010999,2]
[333464609,1722157833291,-4172.17077026,0.00010999,2]
[333464610,1722157833301,-500.0,0.00010999,2]
[333464611,1722157833312,-500.0,0.00010999,2]
[333464612,1722157833323,-500.0,0.00010999,2]
[333464613,1722157833332,-500.0,0.00010999,2]
[333464614,1722157833341,-500.0,0.00010999,2]
[333464615,1722157833351,-500.0,0.00010999,2]
[333464616,1722157833360,-397.18907452,0.00010999,2]
[333464617,1722157833369,-1414.44,0.00010999,2]
[333464618,1722157833378,-1414.44,0.00010999,2]
[333464619,1722157833387,-1414.44,0.00010999,2]
[333464620,1722157833396,-1414.44,0.00010999,2]
[333464621,1722157833406,-1414.44,0.00010999,2]
[333464622,1722157833416,-1414.44,0.00010999,2]
[333464623,1722157833425,-1414.44,0.00010999,2]
[333464624,1722157833434,-1414.44,0.00010999,2]
[333464625,1722157833443,-1414.44,0.00010999,2]
[333464626,1722157833453,-1414.44,0.00010999,2]
[333464627,1722157833465,-1414.44,0.00010999,2]
[333464628,1722157833475,-1414.44,0.00010999,2]
[333464629,1722157833484,-1414.44,0.00010999,2]
[333464630,1722157833494,-1414.44,0.00010999,2]
[333464631,1722157833503,-1414.44,0.00010999,2]
[333464632,1722157833513,-1414.44,0.00010999,2]
[333464633,1722157833523,-1414.44,0.00010999,2]
[333464634,1722157833533,-1414.44,0.00010999,2]
[333464635,1722157833543,-1414.44,0.00010999,2]
[333464636,1722157833553,-1414.44,0.00010999,2]
[333464637,1722157833563,-1414.44,0.00010999,2]
[333464638,1722157833573,-1414.44,0.00010999,2]
[333464639,1722157833582,-1414.44,0.00010999,2]
[333464640,1722157833592,-1414.49531382,0.00010999,2]
[333464641,1722157833602,-701.11,0.00010999,2]
[333464642,1722157833611,-701.11,0.00010999,2]
[333464643,1722157833621,-701.11,0.00010999,2]
[333464644,1722157833630,-701.11,0.00010999,2]
[333464645,1722157833640,-701.11,0.00010999,2]
[333464646,1722157833649,-701.11,0.00010999,2]
[333464647,1722157833658,-701.11,0.00010999,2]
[333464648,1722157833667,-701.11,0.00010999,2]
[333464649,1722157833677,-701.11,0.00010999,2]
[333464650,1722157833687,-701.11,0.00010999,2]
[333464651,1722157833696,-701.11,0.00010999,2]
[333464652,1722157833706,-701.11,0.00010999,2]
[333464653,1722157833715,-701.11,0.00010999,2]
[333464654,1722157833725,-701.11,0.00010999,2]
[333464655,1722157833734,-701.11,0.00010999,2]
[333464656,1722157833743,-701.11,0.00010999,2]
[333464657,1722157833753,-701.11,0.00010999,2]
[333464658,1722157833762,-701.11,0.00010999,2]
[333464659,1722157833771,-701.11,0.00010999,2]
[333464660,1722157833780,-701.11,0.00010999,2]
[333464661,1722157833789,-701.11,0.00010999,2]
[333464662,1722157833798,-701.11,0.00010999,2]
[333464663,1722157833808,-701.11,0.00010999,2]
[333464664,1722157833817,-701.14993683,0.00010999,2]
[333464665,1722157833826,-500.0,0.00010999,2]
[333464666,1722157833836,-500.0,0.00010999,2]
[333464667,1722157833845,-500.0,0.00010999,2]
[333464668,1722157833855,-500.0,0.00010999,2]
[333464669,1722157833864,-606.88849534,0.00010999,2]
[333464670,1722157833873,-259.60414443,0.00010999,2]
[333464671,1722157833883,-514.81806302,0.00010999,2]
[333464672,1722157833892,-500.0,0.00010999,2]
[333464673,1722157833902,-500.0,0.00010999,2]
[333464674,1722157833911,-536.78645514,0.00010999,2]
[333464675,1722157833920,-500.83547185,0.00010999,2]
[333464676,1722157833929,-751.36,0.00010999,2]
[333464677,1722157833938,-751.36,0.00010999,2]
[333464678,1722157833947,-751.36,0.00010999,2]
[333464679,1722157833958,-751.36,0.00010999,2]
[333464680,1722157833967,-751.36,0.00010999,2]
[333464681,1722157833976,-751.36,0.00010999,2]
[333464682,1722157833985,-751.36,0.00010999,2]
[333464683,1722157833994,-751.36,0.00010999,2]
[333464684,1722157834003,-751.36,0.00010999,2]
[333464685,1722157834012,-751.36,0.00010999,2]
[333464686,1722157834021,-751.36,0.00010999,2]
[333464687,1722157834031,-751.36,0.00010999,2]
[333464688,1722157834040,-751.36,0.00010999,2]
[333464689,1722157834049,-751.36,0.00010999,2]
[333464690,1722157834058,-751.36,0.00010999,2]
[333464691,1722157834067,-751.36,0.00010999,2]
[333464692,1722157834079,-751.36,0.00010999,2]
[333464693,1722157834088,-751.36,0.00010999,2]
[333464694,1722157834098,-751.36,0.00010999,2]
[333464695,1722157834107,-751.36,0.00010999,2]
[333464696,1722157834305,-751.36,0.00010999,2]
[333464697,1722157834319,-751.36,0.00010999,2]
[333464698,1722157834329,-751.36,0.00010999,2]
[333464699,1722157834338,-751.52988004,0.00010999,2]
[333464700,1722157834348,-370.24959355,0.00010999,2]
[333464701,1722157834358,-522.15939073,0.00010999,2]
[333464702,1722157834368,-500.0,0.00010999,2]
[333464703,1722157834377,-500.0,0.00010999,2]
[333464704,1722157834388,-500.0,0.00010999,2]
[333464705,1722157834398,-500.0,0.00010999,2]
[333464706,1722157834408,-500.0,0.00010999,2]
[333464707,1722157834417,-500.0,0.00010999,2]
[333464708,1722157834427,-500.0,0.00010999,2]
[333464709,1722157834436,-500.0,0.00010999,2]
[333464710,1722157834447,-500.0,0.00010999,2]
[333464711,1722157834456,-500.0,0.00010999,2]
[333464712,1722157834465,-282.41,0.00010999,2]
[333464713,1722157834475,-231.62129901,0.00010999,2]
[333464714,1722157834484,-4849.05,0.00010999,2]
[333464715,1722157834493,-380.63382279,0.00010999,2]
[333464716,1722157834502,-235.82291885,0.00010999,2]
[333464717,1722157834512,-52026.73521775,0.00011,2]
[333464718,1722157834732,-498.56133196,0.00011,2]
[333464719,1722157834743,-501.4792984,0.00011,2]
[333464720,1722157834755,-1421.59079375,0.00011,2]
[333464721,1722157834766,-706.07482364,0.00011,2]
[333464722,1722157834777,-296.5600783,0.00011,2]
[333464723,1722157834788,-1133.16129937,0.00011,2]
[333464724,1722157834806,-1103.55713475,0.00011,2]
[333464725,1722157834817,-518.40021227,0.00011,2]
[333464726,1722157834828,-4121.07153573,0.00011,2]
[333464727,1722157834839,-24458.45920343,0.00011,2]
[333464728,1722157834850,-1181.42468244,0.00011,2]
[333464729,1722157834861,-11144.37585885,0.00011,2]
[333464730,1722157834872,-14582.78132822,0.00011,2]
[333464731,1722157834883,-104124.83769132,0.00011,2]
[333464732,1722157834894,-1421.18809713,0.00011,2]
[333464733,1722157834907,-750.26546194,0.00011,2]
[333464734,1722157834918,-1266.60175907,0.00011,2]
[333464735,1722157834932,-614.92226377,0.00011,2]
[333464736,1722157834943,-2366.82428039,0.00011,2]
[333464755,1722157837792,-687.68,0.00010008,2]
[333464756,1722157837802,-6001.05988323,0.00011,2]
[333464757,1722157837814,-2995.97861347,0.00011,2]
[333464758,1722157837826,-5629.96734332,0.00011,2]
[333464759,1722157837838,-1478.00702029,0.00011,2]
[333464760,1722157837855,-170758.34412928,0.00011,2]
[333464761,1722157837865,-53053.56827237,0.00011,2]
[333464762,1722157837875,-10544.41554724,0.00011,2]
[333464763,1722157837885,-750.0,0.00011,2]
[333464764,1722157837894,-100748.0036521,0.00011,2]
[333464765,1722157838023,-2616.61523499,0.00011,2]
[333464770,1722157839754,-52998.27918694,0.00011,2]
[333464771,1722157839766,-1439.57887508,0.00011,2]
[333464772,1722157839971,-5688.25282216,0.00011,2]
[333464773,1722157839982,-4110.57959604,0.00011,2]
[333464774,1722157839994,-306.3017982,0.00011,2]
[333464775,1722157840032,-713.16322836,0.00011,2]
[333464842,1722157842896,-165.07604319,0.00010999,2]
[333464843,1722157842906,-1192.22395681,0.00011,2]
[333464844,1722157842916,-91950.62794865,0.00011,2]
[333464845,1722157843061,-325.95,0.00011,2]
[333464887,1722157845761,-491143.21795711,0.00011,2]
[333464892,1722157845821,-1418.17641098,0.00011,2]
[333464894,1722157845881,-367.1453454,0.00011,2]
[333464895,1722157845893,-495.458092,0.00011,2]
[333464896,1722157845942,-20749.31061496,0.00011,2]
[333464897,1722157845953,-307.76185717,0.00011,2]
[333464898,1722157845963,-5401.3857292,0.00011,2]
[333464899,1722157846004,-355.99679615,0.00011,2]
[333464900,1722157846015,-7960.98740877,0.00011,2]
[333464901,1722157846064,-4843.8199897,0.00011,2]
[333464902,1722157846076,-9705.65008683,0.00011,2]
[333464903,1722157846126,-835.91504645,0.00011,2]
[333464967,1722159032008,-687.46,8.219e-05,2]
[333464968,1722159032018,-105.89,9e-05,2]
[333464969,1722159032128,-499.09259707,9e-05,2]
[333464970,1722159032138,-149.00884439,9.495e-05,2]
[333464971,1722159032251,-300.84115561,9.495e-05,2]
[333464972,1722159032261,-51.05740293,9.534e-05,2]
[333464973,1722159032316,-499.09259707,9.534e-05,2]
[333464974,1722159032325,-1852.05948225,0.0001,2]
[333464975,1722159032335,-201.72929337,0.0001,2]
[333464976,1722159032344,-264.49,0.00010087,2]
[333464977,1722159032353,-264.49,0.0001009,2]
[333464978,1722159032363,-264.49,0.00010093,2]
[333464979,1722159032372,-264.49,0.00010095,2]
[333464980,1722159032382,-1142.21,0.00010098,2]
[333464981,1722159032392,-264.49,0.00010098,2]
[333464982,1722159032400,-264.49,0.00010101,2]
[333464983,1722159032410,-264.49,0.00010103,2]
[333464984,1722159032420,-264.49,0.00010106,2]
[333464985,1722159032429,-284.77,0.00010106,2]
[333464986,1722159032439,-264.49,0.00010109,2]
[333464987,1722159032449,-264.49,0.00010111,2]
[333464988,1722159032461,-264.49,0.00010114,2]
[333464989,1722159032470,-264.49,0.00010117,2]
[333464990,1722159032479,-264.49,0.00010119,2]
[333464991,1722159032491,-264.49,0.00010122,2]
[333464992,1722159032500,-264.49,0.00010125,2]
[333464993,1722159032509,-264.49,0.00010127,2]
[333464994,1722159032518,-264.49,0.0001013,2]
[333464995,1722159032528,-264.49,0.00010133,2]
[333464996,1722159032537,-264.49,0.00010135,2]
[333464997,1722159032547,-264.49,0.00010138,2]
[333464998,1722159032556,-264.32512979,0.00010446,2]
[333464999,1722159032565,-687.46,0.00010449,2]
[333465000,1722159032574,-2568.91055564,0.000105,2]
[333465011,1722159037940,-10236.49852237,0.000105,2]
[333465012,1722159037949,-449.85,0.00010682,2]
[333465013,1722159037959,-520.889,0.00010717,2]
[333465014,1722159037969,-550.15,0.00010726,2]
[333465015,1722159037979,-520.889,0.00010765,2]
[333465016,1722159037988,-189.3426764,0.0001078,2]
[333465017,1722159037998,-520.889,0.00010814,2]
[333465018,1722159038008,-520.889,0.00010864,2]
[333465019,1722159038018,-6772.54339818,0.000109,2]
[333465020,1722159038032,-260.25750182,0.000109,2]
[333465021,1722159038044,-1239.98939457,0.000109,2]
[333465022,1722159038057,-520.9101,0.000109,2]
[333465023,1722159038069,-1310.0,0.000109,2]
[333465024,1722159038082,-2838.32758398,0.000109,2]
[333465025,1722159038757,-4090.77292145,0.000109,2]
[333465026,1722159038766,-283.19500425,0.000109,2]
[333465027,1722159038776,-646.13790204,0.000109,2]
[333465028,1722159038785,-167.05516025,0.000109,2]
[333465029,1722159038794,-220.99,0.00010904,3]
[333465030,1722159038804,-500.0,0.00010912,2]
[333465031,1722159038814,-520.889,0.00010913,2]
[333465032,1722159038823,-200.0,0.00010959,2]
[333465033,1722159038833,-520.889,0.00010964,2]
[333465034,1722159038843,-801.48922372,0.0001097,2]
[333465035,1722159038855,-154.33032649,0.00010997,2]
[333465036,1722159038864,-625.0,0.00010998,2]
[333465037,1722159038875,-500.0,0.00010998,2]
[333465038,1722159038884,-646.90301,0.00010998,2]
[333465039,1722159038893,-362.88398037,0.00010998,2]
[333465041,1722159038903,-411.39994251,0.00010998,2]
[333465065,1722159040088,-1500.0,0.00010998,2]
[333465066,1722159040101,-93.42310559,0.00010998,2]
[333465067,1722159040113,-954.79623718,0.00010998,2]
[333465068,1722159040126,-714.13926867,0.00010998,2]
[333465069,1722159040150,-348.31376777,0.00010998,2]
[333465070,1722159040163,-868.33948395,0.00010998,2]
[333465071,1722159040176,-18918.55938786,0.00010998,2]
[333465072,1722159040217,-27926.78391477,0.00010998,2]
[333465073,1722159040228,-6276.2767391,0.00010998,2]
[333465074,1722159040240,-500.0,0.00010999,2]
[333465075,1722159040251,-500.0,0.00010999,2]
[333465076,1722159040262,-500.0,0.00010999,2]
[333465077,1722159040273,-500.0,0.00010999,2]
[333465078,1722159040284,-337.35928,0.00010999,2]
[333465079,1722159040296,-153.43708463,0.00010999,2]
[333465080,1722159040308,-5637.19,0.00010999,2]
[333465081,1722159040320,-2790.62649865,0.00010999,2]
[333465082,1722159040332,-195523.53142145,0.00011,2]
[333465083,1722159040346,-52799.29495221,0.00011,2]
[333465084,1722159040359,-2094.17295339,0.00011,2]
[333465085,1722159040377,-67728.58445858,0.00011,2]
[333465086,1722159040388,-49674.12498544,0.00011,2]
[333465087,1722159040401,-9459.0,0.00011,2]
[333465088,1722159040416,-1447.08866371,0.00011,2]
[333465089,1722159040516,-352.75909744,0.00011,2]
[333465090,1722159040529,-1763.07816425,0.00011,2]
[333465112,1722159040851,-6906.00280481,0.00011,2]
[333465192,1722159043421,-27788.74321011,0.00011,2]
[333465193,1722159043539,-7077.33182396,0.00011,2]
[333465216,1722159045982,-529.27604962,0.00010998,2]
[333465217,1722159046227,-1064.29096388,0.00010998,2]
[333465218,1722159046238,-1052735.95417633,0.00011,2]
[333465219,1722159046251,-3350.55096394,0.00011,2]
[333465220,1722159046293,-879.9737992,0.00011,2]
[333465221,1722159046306,-557.8322401,0.00011,2]
[333465222,1722159046319,-432.00902886,0.00011,2]
[333465223,1722159046331,-8786.32937079,0.00011,2]
[333465286,1722160232220,-640.58,8.222e-05,2]
[333465287,1722160232232,-234.42,0.00010108,2]
[333465288,1722160232244,-95.67,0.00010108,2]
[333465289,1722160232253,-381.06648322,0.00010199,2]
[333465290,1722160232264,-288.84351678,0.00010199,2]
[333465291,1722160232274,-631.43085439,0.00010486,2]
[333465292,1722160232290,-9.14914561,0.00010486,2]
[333465293,1722160232302,-300.0,0.00010499,2]
[333465294,1722160232311,-170.21440169,0.000105,2]
[333465295,1722160232486,-6228.5933424,0.000105,2]
[333465313,1722160238226,-3023.4166,0.000105,2]
[333465314,1722160238238,-361.2818747,0.000105,2]
[333465327,1722160240328,-252.43473696,0.000105,2]
[333465328,1722160240365,-863.93076004,0.000105,2]
[333465329,1722160240562,-1905.53736222,0.000105,2]
[333465330,1722160240574,-150.0,0.00010849,2]
[333465331,1722160240584,-5385.80624219,0.0001088,2]
[333465332,1722160240594,-3996.87588746,0.0001088,2]
[333465333,1722160240605,-7500.0,0.00010898,2]
[333465334,1722160240616,-10000.0,0.000109,2]
[333465335,1722160240625,-194139.96429787,0.000109,2]
[333465336,1722160240636,-500.0,0.00010912,2]
[333465337,1722160240647,-8984.94407519,0.00010958,2]
[333465338,1722160240658,-200.0,0.00010959,2]
[333465339,1722160240669,-151.0,0.00010959,2]
[333465340,1722160240680,-151.0,0.00010959,2]
[333465341,1722160240691,-151.0,0.00010959,2]
[333465342,1722160240701,-151.0,0.00010959,2]
[333465344,1722160240712,-151.0,0.00010959,2]
[333465346,1722160240724,-151.0,0.00010959,2]
[333465348,1722160240734,-151.0,0.00010959,2]
[333465350,1722160240745,-670.98,0.00010959,2]
[333465352,1722160240759,-700.0,0.0001097,2]
[333465354,1722160240768,-500.58181761,0.0001097,2]
[333465356,1722160240778,-211.0,0.00010996,2]
[333465358,1722160240788,-150.0,0.00010996,2]
[333465360,1722160240798,-150.715,0.00010996,2]
[333465362,1722160240808,-500.0,0.00010997,2]
[333465364,1722160240819,-587.87,0.00010997,2]
[333465366,1722160240829,-500.0,0.00010997,2]
[333465368,1722160240838,-500.0,0.00010997,2]
[333465370,1722160240847,-518.49913796,0.00010997,2]
[333465372,1722160240858,-150.0,0.00010997,2]
[333465374,1722160240867,-545.80246894,0.00010997,2]
[333465376,1722160240878,-512.81761002,0.00010997,2]
[333465378,1722160240888,-519.57110336,0.00010997,2]
[333465380,1722160240897,-509.96798419,0.00010997,2]
[333465382,1722160240908,-505.55196652,0.00010997,2]
[333465384,1722160240917,-510.711478,0.00010997,2]
[333465385,1722160240927,-511.71094005,0.00010997,2]
[333465387,1722160240937,-162.22,0.00010997,2]
[333465389,1722160240946,-509.64826132,0.00010998,2]
[333465391,1722160240956,-518.49265078,0.00010998,2]
[333465393,1722160240965,-512.74430903,0.00010998,2]
[333465395,1722160240974,-544.00226499,0.00010998,2]
[333465397,1722160240985,-573.87559399,0.00010998,2]
[333465398,1722160240994,-509.15391504,0.00010998,2]
[333465400,1722160241004,-521.07736609,0.00010998,2]
[333465402,1722160241013,-557.94817577,0.00010998,2]
[333465404,1722160241023,-536.72489711,0.00010998,2]
[333465406,1722160241033,-556.32883068,0.00010998,2]
[333465408,1722160241042,-506.35093434,0.00010998,2]
[333465410,1722160241052,-508.51853885,0.00010998,2]
[333465412,1722160241061,-500.0,0.00010998,2]
[333465414,1722160241071,-510.31064233,0.00010998,2]
[333465416,1722160241081,-500.0,0.00010998,2]
[333465418,1722160241090,-509.35999042,0.00010998,2]
[333465419,1722160241100,-515.08093811,0.00010998,2]
[333465420,1722160241109,-507.46192157,0.00010998,2]
[333465421,1722160241118,-500.0,0.00010998,2]
[333465422,1722160241128,-508.40546057,0.00010998,2]
[333465423,1722160241137,-516.77781492,0.00010998,2]
[333465424,1722160241147,-500.0,0.00010998,2]
[333465425,1722160241156,-508.93292866,0.00010998,2]
[333465426,1722160241166,-505.8805806,0.00010998,2]
[333465427,1722160241175,-500.0,0.00010998,2]
[333465428,1722160241184,-539.31966151,0.00010998,2]
[333465429,1722160241194,-500.0,0.00010998,2]
[333465430,1722160241203,-500.0,0.00010998,2]
[333465432,1722160241212,-507.86513517,0.00010998,2]
[333465434,1722160241222,-506.45199929,0.00010998,2]
[333465436,1722160241231,-511.14932231,0.00010998,2]
[333465438,1722160241240,-44.3496859,0.00010998,2]
[333465440,1722160241252,-474.0097354,0.00010998,2]
[333465441,1722160241262,-303.9902645,0.00010998,2]
[333465448,1722160244232,-216.10867736,0.00010998,2]
[333465449,1722160244242,-514.97427654,0.00010998,2]
[333465450,1722160244251,-519.06606168,0.00010998,2]
[333465451,1722160244261,-570.72126951,0.00010998,2]
[333465452,1722160244270,-500.0,0.00010998,2]
[333465453,1722160244280,-506.82760563,0.00010998,2]
[333465454,1722160244290,-464.37709442,0.00010998,2]
[333465455,1722160244300,-500.0,0.00010998,2]
[333465456,1722160244309,-582.75847422,0.00010998,2]
[333465457,1722160244319,-500.0,0.00010998,2]
[333465458,1722160244328,-500.0,0.00010998,2]
[333465459,1722160244337,-510.59960108,0.00010998,2]
[333465460,1722160244346,-515.62546127,0.00010998,2]
[333465461,1722160244359,-399.58221596,0.00010998,2]
[333465462,1722160244371,-100.41778404,0.00010998,2]
[333465463,1722160244380,-299.88703547,0.00010998,2]
[333465464,1722160244392,-215.99773422,0.00010998,2]
[333465465,1722160244402,-284.00226578,0.00010998,2]
[333465466,1722160244539,-215.99773422,0.00010998,2]
[333465467,1722160244550,-500.0,0.00010998,2]
[333465468,1722160244559,-500.0,0.00010998,2]
[333465469,1722160244569,-500.0,0.00010998,2]
[333465470,1722160244578,-500.0,0.00010998,2]
[333465471,1722160244588,-507.49673536,0.00010998,2]
[333465472,1722160244598,-500.0,0.00010998,2]
[333465473,1722160244607,-509.1714323,0.00010998,2]
[333465474,1722160244616,-500.0,0.00010998,2]
[333465475,1722160244626,-550.37578486,0.00010998,2]
[333465476,1722160244636,-551.44,0.00010998,2]
[333465477,1722160244645,-500.0,0.00010998,2]
[333465478,1722160244655,-508.99604355,0.00010998,2]
[333465479,1722160244665,-508.04135579,0.00010998,2]
[333465480,1722160244675,-507.42901936,0.00010998,2]
[333465481,1722160244685,-500.0,0.00010998,2]
[333465483,1722160244694,-510.13521122,0.00010998,2]
[333465485,1722160244704,-506.97903379,0.00010998,2]
[333465487,1722160244714,-500.0,0.00010998,2]
[333465488,1722160244723,-508.56359134,0.00010998,2]
[333465489,1722160244733,-500.0,0.00010998,2]
[333465490,1722160244743,-511.48505184,0.00010998,2]
[333465491,1722160244753,-500.0,0.00010998,2]
[333465492,1722160244762,-639.88554991,0.00010998,2]
[333465493,1722160244772,-515.59557737,0.00010998,2]
[333465494,1722160244782,-500.0,0.00010998,2]
[333465495,1722160244794,-565.19941399,0.00010998,2]
[333465496,1722160244804,-558.35772109,0.00010998,2]
[333465497,1722160244815,-573.94,0.00010998,2]
[333465498,1722160244825,-512.7399393,0.00010998,2]
[333465499,1722160244834,-500.0,0.00010998,2]
[333465500,1722160244844,-508.60112205,0.00010998,2]
[333465501,1722160244854,-508.88114125,0.00010998,2]
[333465502,1722160244864,-407.05459663,0.00010998,2]
[333465503,1722160244873,-500.0,0.00010998,2]
[333465504,1722160244883,-500.0,0.00010998,2]
[333465505,1722160244893,-505.43529688,0.00010998,2]
[333465506,1722160244903,-512.58868414,0.00010998,2]
[333465507,1722160244913,-500.0,0.00010998,2]
[333465508,1722160244923,-515.26087218,0.00010998,2]
[333465509,1722160244933,-1036.13,0.00010998,2]
[333465510,1722160244943,-502.71854907,0.00010998,2]
[333465511,1722160244953,-563.34612015,0.00010998,2]
[333465512,1722160244962,-503.56356756,0.00010998,2]
[333465513,1722160244972,-514.22767422,0.00010998,2]
[333465514,1722160244982,-500.0,0.00010998,2]
[333465515,1722160244991,-500.0,0.00010998,2]
[333465516,1722160245001,-500.0,0.00010998,2]
[333465517,1722160245011,-500.0,0.00010998,2]
[333465518,1722160245020,-500.0,0.00010998,2]
[333465519,1722160245029,-512.63903702,0.00010998,2]
[333465520,1722160245041,-500.0,0.00010998,2]